[Event "GER-ch Youth U10 2019"]
[Site "Willingen"]
[Date "2019.06.09"]
[Round "2.9"]
[White "Dorendorf, Mika"]
[Black "Huber, Benedikt"]
[Result "1-0"]
[ECO "A21"]
[WhiteElo "1398"]
[BlackElo "1441"]
[Annotator "NA"]
[PlyCount "107"]
[EventDate "2019.06.07"]
[EventType "swiss"]
[EventRounds "11"]
[EventCountry "GER"]
[SourceTitle "playchess.com"]
[Source "ChessBase"]
[SourceQuality "1"]
[TimeControl "40/4500+30:900+30"]

1. c4 {[%emt 0:00:00]} e5 {[%emt 0:00:00]} 2. Nc3 {[%emt 0:00:00]} c6 {[%emt 0:00:00]} 3. Nf3 {[%emt 0:00:20]} d6 {[%emt 0:00:29]} 4. g3 {[%emt 0:00:31]} Nf6 {[%emt 0:00:30]} 5. Bg2 {[%emt 0:01:35]} Be6 {[%emt 0:00:29]} 6. d3 {[%emt 0:01:18]} Nbd7 {[%emt 0:01:11]} 7. O-O {[%emt 0:02:14]} Be7 {[%emt 0:00:55]} 8. a3 {[%emt 0:00:29]} h6 {[%emt 0:00:35]} 9. Qc2 {[%emt 0:00:48]} d5 {[%emt 0:00:40]} 10. cxd5 {[%emt 0:02:00]} cxd5 {[%emt 0:00:08]} 11. e3 {[%emt 0:01:28]} O-O {[%emt 0:00:33]} 12. b4 {[%emt 0:01:44]} Rc8 {[%emt 0:00:18]} 13. Bb2 {[%emt 0:00:42]} Bg4 {[%emt 0:03:52]} 14. Qd2 {[%emt 0:00:57]} Qb6 {[%emt 0:07:32]} 15. d4 {[%emt 0:05:05]} Bxf3 {[%emt 0:02:00]} 16. Bxf3 {[%emt 0:00:26]} e4 {[%emt 0:00:15]} 17. Bg2 {[%emt 0:00:38]} Qe6 {[%emt 0:01:11]} 18. Ne2 {[%emt 0:01:11]} Nh5 {[%emt 0:04:06]} 19. Nc3 {[%emt 0:08:39]} Nb6 {[%emt 0:00:56]} 20. Rac1 {[%emt 0:01:26]} Nc4 {[%emt 0:00:32]} 21. Qe2 {[%emt 0:00:24]} Nf6 {[%emt 0:01:14]} 22. Na4 {[%emt 0:00:43]} b6 {[%emt 0:01:10]} 23. Rc3 {[%emt 0:02:45]} Qd7 {[%emt 0:01:34]} 24. Qc2 {[%emt 0:00:42]} Rc7 {[%emt 0:03:27]} 25. Bc1 {[%emt 0:01:09]} Rfc8 {[%emt 0:01:48]} 26. Qb3 {[%emt 0:01:34]} Ne8 {[%emt 0:05:05]} 27. Nb2 {[%emt 0:02:17]} Nxb2 {[%emt 0:00:53]} 28. Bxb2 {[%emt 0:00:27]} Rxc3 {[%emt 0:02:35]} 29. Bxc3 {[%emt 0:00:17]} Qe6 {[%emt 0:00:39]} 30. Rc1 {[%emt 0:04:55]} Nd6 {[%emt 0:00:45]} 31. Bb2 {[%emt 0:02:01]} Nc4 {[%emt 0:00:57]} 32. Rc3 {[%emt 0:03:22]} Kh7 {[%emt 0:03:53]} 33. h4 {[%emt 0:02:59]} Qf5 {[%emt 0:03:24]} 34. Qc2 {[%emt 0:01:13]} Bd8 {[%emt 0:02:37]} 35. Bc1 {[%emt 0:02:43]} Qd7 {[%emt 0:02:17]} 36. Bxe4+ {[%emt 0:02:01]} g6 {[%emt 0:01:49]} 37. Bg2 {[%emt 0:01:07]} Rc7 {[%emt 0:02:18]} 38. e4 {[%emt 0:02:00]} Qe6 {[%emt 0:03:35]} 39. Kh2 {[%emt 0:03:05]} dxe4 {[%emt 0:03:11]} 40. Bxe4 {[%emt 0:02:59]} b5 {[%emt 0:02:50]} 41. d5 {[%emt 0:15:50]} Qf6 {[%emt 0:16:29]} 42. Rf3 {[%emt 0:03:11]} Qe7 {[%emt 0:01:57]} 43. h5 {[%emt 0:02:32]} Ne5 {[%emt 0:01:19]} 44. hxg6+ {[%emt 0:01:44]} Kg7 {[%emt 0:01:17]} 45. Qb2 {[%emt 0:00:40]} fxg6 {[%emt 0:02:18]} 46. Bf4 {[%emt 0:01:15]} Rc4 {[%emt 0:04:04]} 47. Qxe5+ {[%emt 0:00:34]} Kh7 {[%emt 0:01:27]} 48. Qxe7+ {[%emt 0:00:48]} Bxe7 {[%emt 0:00:06]} 49. Bd3 {[%emt 0:00:47]} Rd4 {[%emt 0:00:49]} 50. Re3 {[%emt 0:00:31]} Bf8 {[%emt 0:01:49]} 51. Be4 {[%emt 0:01:13]} Rd2 {[%emt 0:00:43]} 52. Rf3 {[%emt 0:02:00]} Rd4 {[%emt 0:00:21]} 53. Re3 {[%emt 0:00:25]} Rd2 {[%emt 0:00:19]} 54. Kg2 {[%emt 0:00:08] normal} 1-0

[Event "GER-ch Youth U10 2019"]
[Site "Willingen"]
[Date "2019.06.10"]
[Round "3.1"]
[White "Besou, Hussain"]
[Black "Freude, Paul"]
[Result "1-0"]
[ECO "A37"]
[WhiteElo "1785"]
[BlackElo "1713"]
[Annotator "NA"]
[PlyCount "31"]
[EventDate "2019.06.07"]
[EventType "swiss"]
[EventRounds "11"]
[EventCountry "GER"]
[SourceTitle "playchess.com"]
[Source "ChessBase"]
[SourceQuality "1"]
[TimeControl "40/4500+30:900+30"]

1. c4 {[%emt 0:00:00]} c5 {[%emt 0:00:00]} 2. g3 {[%emt 0:00:00]} g6 {[%emt 0:00:00]} 3. Bg2 {[%emt 0:00:00]} Bg7 {[%emt 0:00:00]} 4. Nc3 {[%emt 0:00:00]} Nc6 {[%emt 0:00:08]} 5. Nf3 {[%emt 0:00:30]} e6 {[%emt 0:00:24]} 6. e3 {[%emt 0:01:18]} Nge7 {[%emt 0:01:24]} 7. d4 {[%emt 0:01:39]} cxd4 {[%emt 0:04:16]} 8. exd4 {[%emt 0:00:05]} O-O {[%emt 0:00:55]} 9. O-O {[%emt 0:01:02]} Rb8 {[%emt 0:05:18]} 10. Bf4 {[%emt 0:00:38]} Ra8 {[%emt 0:06:06]} 11. Nb5 {[%emt 0:01:19]} e5 {[%emt 0:06:44]} 12. dxe5 {[%emt 0:00:09]} a6 {[%emt 0:02:44]} 13. Nd6 {[%emt 0:00:07]} Qa5 {[%emt 0:02:37]} 14. Re1 {[%emt 0:03:21]} h6 {[%emt 0:04:41]} 15. h4 {[%emt 0:02:22]} Rd8 {[%emt 0:02:58]} 16. a3 {[%emt 0:00:39] normal} 1-0

[Event "GER-ch Youth U10 2019"]
[Site "Willingen"]
[Date "2019.06.10"]
[Round "3.2"]
[White "Helms, Finn"]
[Black "Fietz, Nils"]
[Result "1/2-1/2"]
[ECO "D00"]
[WhiteElo "1773"]
[BlackElo "1677"]
[Annotator "NA"]
[PlyCount "168"]
[EventDate "2019.06.07"]
[EventType "swiss"]
[EventRounds "11"]
[EventCountry "GER"]
[SourceTitle "playchess.com"]
[Source "ChessBase"]
[SourceQuality "1"]
[TimeControl "40/4500+30:900+30"]

1. d4 {[%emt 0:00:00]} d5 {[%emt 0:00:00]} 2. Bf4 {[%emt 0:00:00]} c5 {[%emt 0:00:00]} 3. c3 {[%emt 0:00:26]} Nf6 {[%emt 0:00:16]} 4. e3 {[%emt 0:00:36]} Nc6 {[%emt 0:00:41]} 5. Nd2 {[%emt 0:00:06]} e6 {[%emt 0:00:24]} 6. Ngf3 {[%emt 0:00:11]} cxd4 {[%emt 0:00:17]} 7. exd4 {[%emt 0:00:04]} Nh5 {[%emt 0:00:19]} 8. Be3 {[%emt 0:01:48]} Bd6 {[%emt 0:00:43]} 9. g3 {[%emt 0:00:26]} Qc7 {[%emt 0:04:42]} 10. Bd3 {[%emt 0:08:51]} g6 {[%emt 0:02:34]} 11. Bh6 {[%emt 0:06:36]} Bd7 {[%emt 0:03:25]} 12. Qe2 {[%emt 0:01:44]} Rg8 {[%emt 0:03:24]} 13. Nf1 {[%emt 0:02:09]} O-O-O {[%emt 0:02:25]} 14. Ne3 {[%emt 0:02:31]} f6 {[%emt 0:00:31]} 15. O-O {[%emt 0:08:08]} f5 {[%emt 0:09:08]} 16. Ng5 {[%emt 0:09:19]} Bf8 {[%emt 0:07:58]} 17. Bxf8 {[%emt 0:00:45]} Rgxf8 {[%emt 0:00:11]} 18. Nxh7 {[%emt 0:17:29]} Rh8 {[%emt 0:02:35]} 19. Ng5 {[%emt 0:00:06]} Rdf8 {[%emt 0:02:10]} 20. f4 Nf6 {[%emt 0:03:37]} 21. Nc2 {[%emt 0:03:31]} Ne4 {[%emt 0:01:36]} 22. Ne1 {[%emt 0:00:27]} Nxg5 {[%emt 0:01:19]} 23. fxg5 {[%emt 0:00:08]} Rh5 {[%emt 0:00:11]} 24. Nf3 {[%emt 0:01:40]} Rfh8 {[%emt 0:00:53]} 25. Kg2 {[%emt 0:01:44]} e5 {[%emt 0:05:11]} 26. dxe5 {[%emt 0:03:05]} Nxe5 {[%emt 0:00:13]} 27. h4 {[%emt 0:00:28]} Nxf3 {[%emt 0:02:27]} 28. Rxf3 {[%emt 0:03:16]} Bc6 {[%emt 0:00:24]} 29. Bb5 {[%emt 0:00:24]} Re8 {[%emt 0:02:48]} 30. Qd3 {[%emt 0:00:37]} Bxb5 {[%emt 0:00:40]} 31. Qxb5 {[%emt 0:00:08]} Qc6 {[%emt 0:00:05]} 32. Qd3 {[%emt 0:00:48]} Rhh8 {[%emt 0:00:23]} 33. Rd1 {[%emt 0:00:23]} Re5 {[%emt 0:01:51]} 34. Kh3 {[%emt 0:04:08]} Rhe8 {[%emt 0:00:51]} 35. Rf4 {[%emt 0:01:26]} Re1 {[%emt 0:01:29]} 36. Rf1 {[%emt 0:02:07]} Rxf1 {[%emt 0:02:20]} 37. Rxf1 {[%emt 0:01:15]} Qe6 {[%emt 0:01:13]} 38. Rd1 {[%emt 0:00:16]} f4+ {[%emt 0:00:41]} 39. g4 {[%emt 0:02:12]} Kc7 {[%emt 0:02:51]} 40. Qf3 {[%emt 0:01:58]} Qe3 {[%emt 0:00:42]} 41. Qxe3 {[%emt 0:15:09]} Rxe3+ {[%emt 0:15:05]} 42. Kh2 {[%emt 0:00:30]} Re2+ {[%emt 0:00:18]} 43. Kg1 {[%emt 0:00:21]} Kc6 {[%emt 0:00:35]} 44. Rf1 {[%emt 0:00:57]} Re4 {[%emt 0:01:23]} 45. Kg2 {[%emt 0:00:20]} Kd6 {[%emt 0:00:18]} 46. Rh1 {[%emt 0:01:37]} Ke6 {[%emt 0:02:02]} 47. h5 {[%emt 0:00:24]} Kf7 {[%emt 0:00:15]} 48. h6 {[%emt 0:00:28]} Kg8 {[%emt 0:00:16]} 49. h7+ {[%emt 0:00:26]} Kh8 {[%emt 0:00:21]} 50. Kf3 {[%emt 0:00:11]} Ra4 {[%emt 0:00:20]} 51. Rh2 {[%emt 0:00:31]} b5 {[%emt 0:01:13]} 52. b3 {[%emt 0:00:04]} Ra6 {[%emt 0:00:53]} 53. Kxf4 {[%emt 0:00:18]} Re6 {[%emt 0:00:14]} 54. Rd2 {[%emt 0:00:51]} Re4+ {[%emt 0:00:27]} 55. Kf3 {[%emt 0:00:11]} Re5 {[%emt 0:00:10]} 56. Rd4 {[%emt 0:01:55]} Kxh7 {[%emt 0:01:26]} 57. Kf4 {[%emt 0:00:09]} Re2 {[%emt 0:00:56]} 58. Rxd5 {[%emt 0:00:08]} b4 {[%emt 0:01:09]} 59. c4 {[%emt 0:01:02]} Rxa2 {[%emt 0:00:12]} 60. Rd7+ {[%emt 0:00:07]} Kg8 {[%emt 0:00:05]} 61. Rb7 {[%emt 0:01:05]} a5 {[%emt 0:00:15]} 62. c5 {[%emt 0:01:31]} Rc2 {[%emt 0:00:34]} 63. Rb5 {[%emt 0:00:21]} Rc3 {[%emt 0:00:30]} 64. Rxa5 {[%emt 0:00:27]} Rxb3 {[%emt 0:00:31]} 65. Ra6 {[%emt 0:00:30]} Rc3 {[%emt 0:00:13]} 66. Rxg6+ {[%emt 0:01:02]} Kf7 {[%emt 0:00:24]} 67. Rb6 {[%emt 0:00:45]} b3 {[%emt 0:00:09]} 68. c6 {[%emt 0:00:35]} b2 {[%emt 0:00:21]} 69. Rxb2 {[%emt 0:00:09]} Rxc6 {[%emt 0:00:05]} 70. Re2 {[%emt 0:00:30]} Kg6 {[%emt 0:00:19]} 71. Re4 {[%emt 0:00:31]} Rb6 {[%emt 0:00:16]} 72. Rd4 {[%emt 0:00:00]} Rc6 {[%emt 0:00:00]} 73. Rb4 {[%emt 0:00:00]} Ra6 {[%emt 0:00:00]} 74. Rb8 {[%emt 0:00:00]} Ra4+ {[%emt 0:00:00]} 75. Kg3 {[%emt 0:00:00]} Kxg5 {[%emt 0:00:00]} 76. Rb5+ {[%emt 0:00:00]} Kg6 {[%emt 0:00:00]} 77. Kh4 {[%emt 0:00:00]} Ra1 {[%emt 0:00:00]} 78. Rb6+ {[%emt 0:00:00]} Kg7 {[%emt 0:00:00]} 79. Kh5 {[%emt 0:00:00]} Ra5+ {[%emt 0:00:00]} 80. g5 {[%emt 0:00:00]} Ra7 {[%emt 0:00:00]} 81. Rb5 {normal} Rc7 {[%emt 0:00:00]} 82. Re5 {[%emt 0:00:00]} Rb7 {[%emt 0:00:00] normal} 83. Rd5 {[%emt 0:00:00] normal} Rc7 {[%emt 0:00:00]} 84. Kg4 {[%emt 0:00:00]} Rf7 {[%emt 0:00:00] normal} 1/2-1/2

[Event "GER-ch Youth U10 2019"]
[Site "Willingen"]
[Date "2019.06.10"]
[Round "3.3"]
[White "Sauer, Tim"]
[Black "Dorendorf, Mika"]
[Result "1-0"]
[ECO "A22"]
[WhiteElo "1553"]
[BlackElo "1398"]
[Annotator "NA"]
[PlyCount "59"]
[EventDate "2019.06.07"]
[EventType "swiss"]
[EventRounds "11"]
[EventCountry "GER"]
[SourceTitle "playchess.com"]
[Source "ChessBase"]
[SourceQuality "1"]
[TimeControl "40/4500+30:900+30"]

1. c4 {[%emt 0:00:00]} e5 {[%emt 0:00:00]} 2. Nc3 {[%emt 0:00:00]} Nf6 {[%emt 0:00:00]} 3. g3 {[%emt 0:00:00]} d5 {[%emt 0:00:00]} 4. cxd5 {[%emt 0:00:00]} Nxd5 {[%emt 0:00:00]} 5. Bg2 {[%emt 0:00:00]} Ne7 {[%emt 0:00:05]} 6. Nf3 {[%emt 0:00:06]} Nbc6 {[%emt 0:00:08]} 7. O-O {[%emt 0:00:55]} g6 {[%emt 0:00:09]} 8. d3 {[%emt 0:05:27]} Bg7 {[%emt 0:02:32]} 9. Bd2 {[%emt 0:03:38]} O-O 10. Rc1 {[%emt 0:00:32]} h6 {[%emt 0:02:39]} 11. a3 {[%emt 0:01:34]} Be6 {[%emt 0:00:54]} 12. b4 {[%emt 0:05:08]} a6 {[%emt 0:04:50]} 13. Na4 {[%emt 0:02:37]} Bd5 {[%emt 0:02:31]} 14. e4 {[%emt 0:16:33]} Be6 {[%emt 0:01:05]} 15. Nc5 {[%emt 0:00:13]} Qc8 {[%emt 0:00:12]} 16. a4 {[%emt 0:10:54]} b6 {[%emt 0:00:14]} 17. Nxe6 {[%emt 0:03:42]} Qxe6 {[%emt 0:00:30]} 18. b5 {[%emt 0:00:29]} Na7 {[%emt 0:03:00]} 19. Rb1 {[%emt 0:09:40]} axb5 {[%emt 0:01:03]} 20. axb5 {[%emt 0:00:39]} Qd7 {[%emt 0:01:18]} 21. Qb3 {[%emt 0:00:58]} Rfd8 {[%emt 0:00:42]} 22. Bc3 {[%emt 0:01:57]} Qd6 {[%emt 0:05:15]} 23. Rfd1 {[%emt 0:01:45]} Re8 {[%emt 0:00:42]} 24. d4 {[%emt 0:01:37]} exd4 {[%emt 0:01:31]} 25. Bxd4 {[%emt 0:01:19]} Bxd4 {[%emt 0:00:40]} 26. Nxd4 {[%emt 0:00:54]} Qe5 {[%emt 0:01:58]} 27. f4 {[%emt 0:00:51]} Qg7 {[%emt 0:05:06]} 28. Ra1 {[%emt 0:04:23]} Red8 {[%emt 0:05:49]} 29. e5 {[%emt 0:00:22]} Qf8 {[%emt 0:02:15] normal} 30. Bxa8 {[%emt 0:01:33]} 1-0

[Event "GER-ch Youth U10 2019"]
[Site "Willingen"]
[Date "2019.06.10"]
[Round "3.4"]
[White "Grabs, Peter"]
[Black "Haubold, Sebastian Marcel"]
[Result "1-0"]
[ECO "B51"]
[WhiteElo "1575"]
[BlackElo "1506"]
[Annotator "NA"]
[PlyCount "139"]
[EventDate "2019.06.07"]
[EventType "swiss"]
[EventRounds "11"]
[EventCountry "GER"]
[SourceTitle "playchess.com"]
[Source "ChessBase"]
[SourceQuality "1"]
[TimeControl "40/4500+30:900+30"]

1. e4 {[%emt 0:00:00]} c5 {[%emt 0:00:00]} 2. Nf3 {[%emt 0:00:00]} d6 {[%emt 0:00:20]} 3. Bb5+ {[%emt 0:00:00]} Nc6 {[%emt 0:01:01]} 4. O-O {[%emt 0:00:00]} Bd7 {[%emt 0:01:13]} 5. Re1 {[%emt 0:00:00]} Nf6 {[%emt 0:02:27]} 6. c3 {[%emt 0:00:07]} a6 {[%emt 0:03:15]} 7. Bf1 {[%emt 0:00:05]} Bg4 {[%emt 0:03:51]} 8. h3 {[%emt 0:02:10]} Bxf3 {[%emt 0:03:56]} 9. Qxf3 {[%emt 0:00:14]} g6 {[%emt 0:00:11]} 10. Qd1 {[%emt 0:00:52]} Bh6 {[%emt 0:02:01]} 11. Na3 {[%emt 0:00:29]} e5 {[%emt 0:05:47]} 12. Nc2 {[%emt 0:00:31]} O-O {[%emt 0:01:37]} 13. d4 {[%emt 0:16:43]} Bxc1 {[%emt 0:03:59]} 14. Rxc1 {[%emt 0:00:14]} Qb6 {[%emt 0:01:22]} 15. d5 {[%emt 0:00:59]} Ne7 {[%emt 0:00:51]} 16. b3 {[%emt 0:00:32]} Qa5 {[%emt 0:01:50]} 17. Ne3 {[%emt 0:01:36]} b5 {[%emt 0:04:34]} 18. Qc2 {[%emt 0:00:33]} Nd7 {[%emt 0:02:56]} 19. Bd3 {[%emt 0:04:45]} Qb6 {[%emt 0:03:24]} 20. a4 {[%emt 0:01:50]} Rab8 {[%emt 0:01:00]} 21. axb5 {[%emt 0:00:44]} axb5 {[%emt 0:00:09]} 22. Ra1 {[%emt 0:00:15]} Ra8 {[%emt 0:00:06]} 23. Ra2 {[%emt 0:02:37]} Ra6 {[%emt 0:01:49]} 24. Rea1 {[%emt 0:00:43]} Rfa8 {[%emt 0:00:12]} 25. Qb2 {[%emt 0:01:03]} R8a7 {[%emt 0:04:11]} 26. Ra3 {[%emt 0:00:26]} Qb7 {[%emt 0:01:17]} 27. R1a2 {[%emt 0:00:47]} Qa8 {[%emt 0:01:05]} 28. Nc2 {[%emt 0:00:30]} Qb7 {[%emt 0:03:44]} 29. Qa1 {[%emt 0:01:02]} Rxa3 {[%emt 0:03:50]} 30. Rxa3 {[%emt 0:00:16]} Rxa3 {[%emt 0:00:06]} 31. Nxa3 {[%emt 0:01:46]} f5 {[%emt 0:02:21]} 32. f3 {[%emt 0:01:03]} b4 {[%emt 0:01:35]} 33. Nc4 {[%emt 0:02:00]} Qc7 {[%emt 0:01:12]} 34. cxb4 {[%emt 0:03:37]} fxe4 {[%emt 0:01:35]} 35. fxe4 {[%emt 0:00:19]} cxb4 {[%emt 0:01:38]} 36. Qa8+ {[%emt 0:05:34]} Kg7 {[%emt 0:00:58]} 37. Qa5 {[%emt 0:03:08]} Qb8 {[%emt 0:03:32]} 38. Bc2 {[%emt 0:08:12]} Kf8 {[%emt 0:06:59]} 39. Kf2 {[%emt 0:09:51]} Kg7 {[%emt 0:02:45]} 40. Ke2 {[%emt 0:01:39]} Nc8 {[%emt 0:02:38]} 41. Qd8 {[%emt 0:16:30]} Qb7 {[%emt 0:20:02]} 42. Bd3 {[%emt 0:03:11]} h6 {[%emt 0:02:56]} 43. Na5 {[%emt 0:01:58]} Qa7 {[%emt 0:00:13]} 44. Qxc8 {[%emt 0:00:33]} Qxa5 {[%emt 0:00:09]} 45. Qxd7+ {[%emt 0:00:05]} Kg8 {[%emt 0:00:08]} 46. Qe6+ {[%emt 0:00:24]} Kg7 {[%emt 0:00:22]} 47. Qxd6 {[%emt 0:00:40]} Qa2+ {[%emt 0:00:19]} 48. Ke3 {[%emt 0:00:08]} Qxg2 {[%emt 0:00:11]} 49. Qxe5+ {[%emt 0:00:09]} Kf7 {[%emt 0:00:09]} 50. Qe6+ {[%emt 0:01:17]} Kg7 {[%emt 0:00:16]} 51. Qg4 {[%emt 0:02:20]} Qb2 {[%emt 0:00:17]} 52. Qd7+ {[%emt 0:00:42]} Kg8 {[%emt 0:00:14]} 53. Qc8+ {[%emt 0:00:49]} Kg7 54. Qb7+ Kf6 {[%emt 0:01:07]} 55. Qb6+ {[%emt 0:00:56]} Kg7 {[%emt 0:00:13]} 56. Qd4+ {[%emt 0:00:05]} Qxd4+ {[%emt 0:00:08]} 57. Kxd4 {[%emt 0:00:04]} Kf6 {[%emt 0:00:10]} 58. e5+ {[%emt 0:00:04]} Ke7 {[%emt 0:00:06]} 59. d6+ {[%emt 0:00:03]} Ke6 {[%emt 0:00:07]} 60. Bc4+ {[%emt 0:00:04]} Kd7 {[%emt 0:00:10]} 61. Kc5 {[%emt 0:01:04]} g5 {[%emt 0:00:22]} 62. e6+ {[%emt 0:00:06]} Kd8 {[%emt 0:00:12]} 63. e7+ {[%emt 0:00:05]} Kd7 {[%emt 0:00:06]} 64. Bb5+ {[%emt 0:00:07]} Ke6 {[%emt 0:00:09]} 65. e8=Q+ {[%emt 0:00:05]} Kf5 {[%emt 0:00:09]} 66. d7 {[%emt 0:00:26]} g4 {[%emt 0:03:00]} 67. d8=Q {[%emt 0:00:12]} gxh3 {[%emt 0:00:08]} 68. Qdd7+ {[%emt 0:00:07]} Kf4 {[%emt 0:00:21]} 69. Qdf7+ {[%emt 0:00:14]} Kg3 {[%emt 0:00:25]} 70. Qeg8+ {[%emt 0:00:06] normal} 1-0

[Event "GER-ch Youth U10 2019"]
[Site "Willingen"]
[Date "2019.06.10"]
[Round "3.5"]
[White "Kullmann, Max"]
[Black "Ermitsch, Magnus"]
[Result "0-1"]
[ECO "A45"]
[WhiteElo "1455"]
[BlackElo "1843"]
[Annotator "NA"]
[PlyCount "70"]
[EventDate "2019.06.07"]
[EventType "swiss"]
[EventRounds "11"]
[EventCountry "GER"]
[SourceTitle "playchess.com"]
[Source "ChessBase"]
[SourceQuality "1"]
[TimeControl "40/4500+30:900+30"]

1. d4 {[%emt 0:00:00]} Nf6 {[%emt 0:00:30]} 2. Bf4 {[%emt 0:00:00]} d5 {[%emt 0:00:55]} 3. e3 {[%emt 0:00:16]} c5 {[%emt 0:01:04]} 4. c3 {[%emt 0:00:10]} Nc6 {[%emt 0:01:32]} 5. Bd3 {[%emt 0:00:28]} e6 {[%emt 0:02:18]} 6. Nf3 {[%emt 0:00:23]} Bd6 {[%emt 0:01:40]} 7. Bg3 {[%emt 0:05:04]} O-O {[%emt 0:02:48]} 8. dxc5 {[%emt 0:01:35]} Bxc5 {[%emt 0:01:13]} 9. h3 {[%emt 0:01:49]} Re8 {[%emt 0:01:52]} 10. Bb5 {[%emt 0:05:59]} Qb6 {[%emt 0:01:51]} 11. Bxc6 {[%emt 0:20:18]} bxc6 {[%emt 0:01:41]} 12. Qc2 {[%emt 0:04:36]} Ba6 {[%emt 0:01:47]} 13. Nbd2 {[%emt 0:02:40]} Ne4 {[%emt 0:03:20]} 14. Bh2 {[%emt 0:02:40]} Bxe3 {[%emt 0:02:13]} 15. fxe3 {[%emt 0:00:34]} Qxe3+ {[%emt 0:00:08]} 16. Kd1 {[%emt 0:00:32]} Nf2+ {[%emt 0:00:47]} 17. Kc1 {[%emt 0:01:04]} Nxh1 {[%emt 0:00:17]} 18. Qd1 {[%emt 0:00:39]} Nf2 {[%emt 0:01:02]} 19. Qc2 {[%emt 0:00:28]} Bd3 {[%emt 0:04:00]} 20. Qa4 {[%emt 0:01:01]} Be4 {[%emt 0:04:16]} 21. Qd4 {[%emt 0:04:51]} Qe2 {[%emt 0:00:22]} 22. Nxe4 {[%emt 0:01:31]} Nd3+ {[%emt 0:00:06]} 23. Qxd3 {[%emt 0:00:33]} Qxd3 {[%emt 0:00:06]} 24. Ned2 {[%emt 0:00:26]} f6 {[%emt 0:01:10]} 25. Bd6 {[%emt 0:00:51]} e5 {[%emt 0:00:10]} 26. Bc5 {[%emt 0:00:15]} e4 {[%emt 0:00:15]} 27. Ne1 {[%emt 0:01:07]} Qe2 {[%emt 0:00:22]} 28. Nc2 {[%emt 0:00:39]} e3 {[%emt 0:00:15]} 29. Bxe3 {[%emt 0:00:17]} Rxe3 {[%emt 0:00:11]} 30. Nxe3 {[%emt 0:00:18]} Qxe3 {[%emt 0:00:05]} 31. Kc2 {[%emt 0:00:15]} d4 {[%emt 0:00:10]} 32. cxd4 {[%emt 0:00:23]} c5 {[%emt 0:00:42]} 33. dxc5 {[%emt 0:00:46]} Qxc5+ {[%emt 0:00:08]} 34. Kb3 {[%emt 0:00:37]} Rb8+ {[%emt 0:00:07]} 35. Ka4 {[%emt 0:00:19]} Qb4# {normal} 0-1

[Event "GER-ch Youth U10 2019"]
[Site "Willingen"]
[Date "2019.06.10"]
[Round "3.6"]
[White "Meng, Yuxuan"]
[Black "Sommer, Justus"]
[Result "0-1"]
[ECO "C70"]
[WhiteElo "1288"]
[BlackElo "1684"]
[Annotator "NA"]
[PlyCount "70"]
[EventDate "2019.06.07"]
[EventType "swiss"]
[EventRounds "11"]
[EventCountry "GER"]
[SourceTitle "playchess.com"]
[Source "ChessBase"]
[SourceQuality "1"]
[TimeControl "40/4500+30:900+30"]

1. e4 {[%emt 0:00:00]} e5 {[%emt 0:01:06]} 2. Nf3 {[%emt 0:00:00]} Nc6 {[%emt 0:00:17]} 3. Bb5 {[%emt 0:00:00]} a6 {[%emt 0:00:17]} 4. Ba4 {[%emt 0:00:00]} b5 {[%emt 0:00:09]} 5. Bb3 {[%emt 0:00:00]} Nf6 {[%emt 0:00:08]} 6. Qe2 {[%emt 0:00:36]} Be7 {[%emt 0:00:37]} 7. a4 {[%emt 0:00:26]} b4 {[%emt 0:00:33]} 8. c3 {[%emt 0:01:57]} bxc3 {[%emt 0:00:36]} 9. bxc3 {[%emt 0:00:08]} a5 {[%emt 0:00:38]} 10. d4 {[%emt 0:00:49]} d6 {[%emt 0:00:16]} 11. Qc4 {[%emt 0:00:32]} Kd7 {[%emt 0:02:54]} 12. Qxf7 {[%emt 0:00:30]} Qe8 {[%emt 0:00:22]} 13. Qxg7 {[%emt 0:01:07]} Ba6 {[%emt 0:00:45]} 14. Bg5 {[%emt 0:06:20]} Nxe4 {[%emt 0:04:02]} 15. Bd5 {[%emt 0:02:20]} Nxg5 {[%emt 0:00:54]} 16. Nxg5 {[%emt 0:00:12]} Kc8 {[%emt 0:06:17]} 17. Bxc6 {[%emt 0:01:02]} Qxc6 {[%emt 0:00:08]} 18. Qxh8+ {[%emt 0:00:25]} Kb7 {[%emt 0:00:08]} 19. Qxh7 {[%emt 0:00:13]} Bxg5 {[%emt 0:00:14]} 20. f3 {[%emt 0:01:46]} exd4 {[%emt 0:00:46]} 21. cxd4 {[%emt 0:02:14]} Qc1+ {[%emt 0:01:47]} 22. Kf2 {[%emt 0:00:44]} Qe3+ {[%emt 0:00:28]} 23. Kg3 {[%emt 0:00:15]} Qf4+ {[%emt 0:00:20]} 24. Kh3 {[%emt 0:01:02]} Qf6 {[%emt 0:00:56]} 25. Qe4+ {[%emt 0:01:09]} Ka7 {[%emt 0:00:34]} 26. g4 {[%emt 0:17:10]} Bb7 {[%emt 0:01:45]} 27. Qf5 {[%emt 0:00:48]} Rh8+ {[%emt 0:00:26]} 28. Kg2 {[%emt 0:00:50]} Qe7 {[%emt 0:04:35]} 29. Qxa5+ {[%emt 0:01:45]} Kb8 {[%emt 0:00:11]} 30. Qe1 {[%emt 0:01:42]} Qf6 {[%emt 0:02:08]} 31. Qf2 {[%emt 0:01:13]} Qf4 {[%emt 0:03:37]} 32. d5 {[%emt 0:12:19]} Bxd5 {[%emt 0:02:12]} 33. Qg3 {[%emt 0:01:32]} Qd4 {[%emt 0:02:35]} 34. Ra3 {[%emt 0:01:04]} Bh4 {[%emt 0:00:55]} 35. Qh3 {[%emt 0:01:31]} Qf2# {[%emt 0:00:17] normal} 0-1

[Event "GER-ch Youth U10 2019"]
[Site "Willingen"]
[Date "2019.06.10"]
[Round "3.7"]
[White "Klaska, Philipp Leon"]
[Black "Jahnz, Laurin"]
[Result "1/2-1/2"]
[ECO "C54"]
[WhiteElo "1444"]
[BlackElo "1497"]
[Annotator "NA"]
[PlyCount "47"]
[EventDate "2019.06.07"]
[EventType "swiss"]
[EventRounds "11"]
[EventCountry "GER"]
[SourceTitle "playchess.com"]
[Source "ChessBase"]
[SourceQuality "1"]
[TimeControl "40/4500+30:900+30"]

1. e4 {[%emt 0:00:00]} e5 {[%emt 0:00:00]} 2. Nf3 {[%emt 0:00:00]} Nc6 {[%emt 0:00:00]} 3. Bc4 {[%emt 0:00:00]} Bc5 {[%emt 0:00:00]} 4. c3 {[%emt 0:00:00]} Nf6 {[%emt 0:00:00]} 5. d4 {[%emt 0:00:00]} exd4 {[%emt 0:00:00]} 6. cxd4 {[%emt 0:00:00]} Bb4+ {[%emt 0:00:00]} 7. Bd2 {[%emt 0:00:07]} Bxd2+ {[%emt 0:00:06]} 8. Nbxd2 {[%emt 0:00:08]} d5 {[%emt 0:00:11]} 9. exd5 {[%emt 0:00:04]} Nxd5 {[%emt 0:00:08]} 10. O-O {[%emt 0:00:07]} O-O {[%emt 0:00:06]} 11. Rc1 {[%emt 0:00:04]} Nb6 {[%emt 0:00:10]} 12. Bb3 {[%emt 0:00:05]} a5 {[%emt 0:00:12]} 13. a4 {[%emt 0:00:08]} Bg4 {[%emt 0:00:57]} 14. h3 {[%emt 0:01:39]} Bh5 {[%emt 0:05:06]} 15. Rc5 {[%emt 0:02:35]} Bg6 {[%emt 0:02:21]} 16. Nc4 {[%emt 0:08:27]} Nxc4 {[%emt 0:01:49]} 17. Bxc4 {[%emt 0:04:33]} Nb4 {[%emt 0:10:24]} 18. b3 {[%emt 0:07:16]} Re8 {[%emt 0:07:49]} 19. Re1 {[%emt 0:09:56]} Rxe1+ {[%emt 0:04:36]} 20. Qxe1 {[%emt 0:03:45]} Bd3 {[%emt 0:07:52]} 21. Qc3 {[%emt 0:20:35]} Bxc4 {[%emt 0:04:09]} 22. Qxc4 {[%emt 0:01:28]} c6 {[%emt 0:03:01]} 23. Re5 {[%emt 0:07:29]} Nd5 {[%emt 0:06:08]} 24. Nd2 {[%emt 0:10:18] normal} 1/2-1/2